[Event "Titled Tuesday Blitz December 27 Late 2022"]
[White "Freile Martin, Javier"]
[Black "Defend, Balint"]
[WhiteFideId "3600165"]
[BlackFideId "17004853"]
[WhiteElo "2329"]
[BlackElo "1673"]
[Result "0-1"]
[Round "04"]
[TimeControl "180+2"]
[Date "2022.12.27"]
[WhiteClock "0:00:01"]
[BlackClock "0:01:05"]

1. d4 {[%clk 0:03:00]}  Nf6 {[%clk 0:02:59]} 2. c4 {[%clk 0:02:56]}  e6 {[%clk 0:03:00]} 3. Nc3 {[%clk 0:02:46]}  Bb4 {[%clk 0:02:59]} 4. Bg5 {[%clk 0:02:42]}  h6 {[%clk 0:02:59]} 5. Bd2 {[%clk 0:02:41]}  c5 {[%clk 0:02:58]} 6. d5 {[%clk 0:02:36]}  d6 {[%clk 0:02:53]} 7. a3 {[%clk 0:02:32]}  Bxc3 {[%clk 0:02:52]} 8. Bxc3 {[%clk 0:02:31]}  e5 {[%clk 0:02:52]} 9. g3 {[%clk 0:02:25]}  Bf5 {[%clk 0:02:51]} 10. Bg2 {[%clk 0:02:24]}  Bg6 {[%clk 0:02:44]} 11. Nf3 {[%clk 0:02:22]}  Ne4 {[%clk 0:02:43]} 12. Rc1 {[%clk 0:02:08]}  O-O {[%clk 0:02:41]} 13. O-O {[%clk 0:02:07]}  Bh7 {[%clk 0:02:39]} 14. Be1 {[%clk 0:02:05]}  f5 {[%clk 0:02:38]} 15. b4 {[%clk 0:01:54]}  f4 {[%clk 0:02:34]} 16. Qb3 {[%clk 0:01:43]}  b6 {[%clk 0:02:33]} 17. Nd2 {[%clk 0:01:26]}  Nxd2 {[%clk 0:02:31]} 18. Bxd2 {[%clk 0:01:26]}  Nd7 {[%clk 0:02:31]} 19. Bh3 {[%clk 0:01:06]}  Nf6 {[%clk 0:02:13]} 20. Be6+ {[%clk 0:01:03]}  Kh8 {[%clk 0:02:13]} 21. gxf4 {[%clk 0:00:55]}  exf4 {[%clk 0:02:13]} 22. Bxf4 {[%clk 0:00:51]}  Ne4 {[%clk 0:02:12]} 23. Qe3 {[%clk 0:00:46]}  Qf6 {[%clk 0:02:03]} 24. Bg3 {[%clk 0:00:41]}  Rae8 {[%clk 0:01:58]} 25. f3 {[%clk 0:00:27]}  Ng5 {[%clk 0:01:56]} 26. Qc3 {[%clk 0:00:17]}  Qg6 {[%clk 0:01:38]} 27. Kh1 {[%clk 0:00:15]}  Nxe6 {[%clk 0:01:38]} 28. dxe6 {[%clk 0:00:15]}  Rxe6 {[%clk 0:01:39]} 29. Rcd1 {[%clk 0:00:14]}  Rxe2 {[%clk 0:01:34]} 30. Rxd6 {[%clk 0:00:12]}  Qg5 {[%clk 0:01:26]} 31. Rd7 {[%clk 0:00:09]}  Be4 {[%clk 0:01:26]} 32. Kg1 {[%clk 0:00:03]}  Bc6 {[%clk 0:01:19]} 33. Rc7 {[%clk 0:00:02]}  Ba8 {[%clk 0:01:08]} 34. bxc5 {[%clk 0:00:02]}  bxc5 {[%clk 0:01:08]} 35. Qd3 {[%clk 0:00:01]}  Rfe8 {[%clk 0:01:05]} 0-1


[Site "https://www.chess.com"]

[Event "Titled Tuesday Blitz December 27 Late 2022"]
[White "Gahan, M G"]
[Black "Martin Carmona, Gaston Manuel"]
[WhiteFideId "5027373"]
[BlackFideId "22284567"]
[WhiteElo "2247"]
[BlackElo "2333"]
[Result "1-0"]
[Round "04"]
[TimeControl "180+2"]
[Date "2022.12.27"]
[WhiteClock "0:00:20"]
[BlackClock "0:00:03"]

1. e4 {[%clk 0:03:00]}  c5 {[%clk 0:02:55]} 2. c3 {[%clk 0:03:00]}  Nf6 {[%clk 0:02:51]} 3. e5 {[%clk 0:03:01]}  Nd5 {[%clk 0:02:51]} 4. d4 {[%clk 0:03:01]}  cxd4 {[%clk 0:02:52]} 5. cxd4 {[%clk 0:03:02]}  d6 {[%clk 0:02:51]} 6. Nf3 {[%clk 0:03:02]}  Nc6 {[%clk 0:02:51]} 7. Bc4 {[%clk 0:03:02]}  Nb6 {[%clk 0:02:51]} 8. Bb5 {[%clk 0:03:02]}  dxe5 {[%clk 0:02:52]} 9. Nxe5 {[%clk 0:03:02]}  Bd7 {[%clk 0:02:52]} 10. Nxd7 {[%clk 0:03:02]}  Qxd7 {[%clk 0:02:53]} 11. Nc3 {[%clk 0:03:02]}  e6 {[%clk 0:02:52]} 12. Be3 {[%clk 0:03:02]}  a6 {[%clk 0:02:50]} 13. Bxc6 {[%clk 0:03:02]}  Qxc6 {[%clk 0:02:49]} 14. O-O {[%clk 0:03:02]}  Nd5 {[%clk 0:02:46]} 15. Rc1 {[%clk 0:02:58]}  Qd7 {[%clk 0:02:44]} 16. Qf3 {[%clk 0:02:49]}  Be7 {[%clk 0:02:35]} 17. Nxd5 {[%clk 0:02:44]}  exd5 {[%clk 0:02:36]} 18. Qg3 {[%clk 0:02:42]}  O-O {[%clk 0:02:35]} 19. Rc7 {[%clk 0:02:42]}  Qe6 {[%clk 0:02:13]} 20. Rxb7 {[%clk 0:02:39]}  Bd6 {[%clk 0:02:13]} 21. Qf3 {[%clk 0:02:35]}  Rfb8 {[%clk 0:02:14]} 22. Rxb8+ {[%clk 0:02:30]}  Rxb8 {[%clk 0:02:15]} 23. b3 {[%clk 0:02:31]}  a5 {[%clk 0:02:12]} 24. Rc1 {[%clk 0:02:19]}  h6 {[%clk 0:02:09]} 25. g3 {[%clk 0:02:17]}  Ba3 {[%clk 0:02:03]} 26. Rc7 {[%clk 0:02:14]}  Bb4 {[%clk 0:01:34]} 27. Ra7 {[%clk 0:02:05]}  Rf8 {[%clk 0:01:29]} 28. Kg2 {[%clk 0:02:01]}  Qc6 {[%clk 0:01:25]} 29. Bf4 {[%clk 0:01:56]}  Qe6 {[%clk 0:01:23]} 30. Be5 {[%clk 0:01:54]}  f6 {[%clk 0:01:23]} 31. Bc7 {[%clk 0:01:49]}  Rf7 {[%clk 0:01:23]} 32. Ra8+ {[%clk 0:01:47]}  Rf8 {[%clk 0:01:22]} 33. Rxf8+ {[%clk 0:01:27]}  Kxf8 {[%clk 0:01:23]} 34. Qd3 {[%clk 0:01:24]}  Kg8 {[%clk 0:01:21]} 35. h4 {[%clk 0:01:19]}  Qc6 {[%clk 0:01:17]} 36. Bf4 {[%clk 0:01:16]}  Qe8 {[%clk 0:01:04]} 37. Qf5 {[%clk 0:01:12]}  Qc6 {[%clk 0:00:46]} 38. Qg6 {[%clk 0:01:06]}  Bc3 {[%clk 0:00:44]} 39. Bxh6 {[%clk 0:01:04]}  Qd7 {[%clk 0:00:45]} 40. Be3 {[%clk 0:01:01]}  Qe6 {[%clk 0:00:40]} 41. Qc2 {[%clk 0:00:57]}  Bb4 {[%clk 0:00:38]} 42. Qg6 {[%clk 0:00:52]}  Bc3 {[%clk 0:00:37]} 43. h5 {[%clk 0:00:52]}  Kf8 {[%clk 0:00:27]} 44. h6 {[%clk 0:00:51]}  gxh6 {[%clk 0:00:28]} 45. Qxh6+ {[%clk 0:00:48]}  Ke8 {[%clk 0:00:27]} 46. Qh8+ {[%clk 0:00:46]}  Kd7 {[%clk 0:00:26]} 47. Qh7+ {[%clk 0:00:47]}  Ke8 {[%clk 0:00:23]} 48. Qd3 {[%clk 0:00:45]}  Bb4 {[%clk 0:00:22]} 49. Qb5+ {[%clk 0:00:42]}  Kf7 {[%clk 0:00:23]} 50. Qd3 {[%clk 0:00:35]}  Ke8 {[%clk 0:00:23]} 51. Bd2 {[%clk 0:00:34]}  Bxd2 {[%clk 0:00:21]} 52. Qxd2 {[%clk 0:00:34]}  Qe4+ {[%clk 0:00:20]} 53. Kg1 {[%clk 0:00:34]}  Kf7 {[%clk 0:00:15]} 54. Kf1 {[%clk 0:00:18]}  Qh1+ {[%clk 0:00:14]} 55. Ke2 {[%clk 0:00:19]}  Qe4+ {[%clk 0:00:15]} 56. Kd1 {[%clk 0:00:18]}  Qb1+ {[%clk 0:00:15]} 57. Ke2 {[%clk 0:00:19]}  Qe4+ {[%clk 0:00:15]} 58. Qe3 {[%clk 0:00:20]}  Qc2+ {[%clk 0:00:15]} 59. Kf3 {[%clk 0:00:20]}  Qxa2 {[%clk 0:00:15]} 60. Qd3 {[%clk 0:00:20]}  a4 {[%clk 0:00:08]} 61. bxa4 {[%clk 0:00:20]}  Qxa4 {[%clk 0:00:09]} 62. Qh7+ {[%clk 0:00:20]}  Ke6 {[%clk 0:00:09]} 63. Qg8+ {[%clk 0:00:20]}  Kd6 {[%clk 0:00:07]} 64. Qd8+ {[%clk 0:00:20]}  Ke6 {[%clk 0:00:07]} 65. Qc8+ {[%clk 0:00:20]}  Ke7 {[%clk 0:00:04]} 66. Qc5+ {[%clk 0:00:20]}  Ke6 {[%clk 0:00:05]} 67. Qc8+ {[%clk 0:00:20]}  Ke7 {[%clk 0:00:05]} 68. Qc3 {[%clk 0:00:20]}  Qd7 {[%clk 0:00:04]} 69. g4 {[%clk 0:00:20]}  Kf7 {[%clk 0:00:05]} 70. Qe3 {[%clk 0:00:20]}  Qd6 {[%clk 0:00:05]} 71. Qf4 {[%clk 0:00:20]}  Qa3+ {[%clk 0:00:04]} 72. Kg2 {[%clk 0:00:20]}  Qd3 {[%clk 0:00:04]} 73. Qc7+ {[%clk 0:00:20]}  Kg6 {[%clk 0:00:04]} 74. Qf4 {[%clk 0:00:20]}  Kf7 {[%clk 0:00:03]} 75. g5 {[%clk 0:00:19]}  Qg6 {[%clk 0:00:03]} 76. Qxf6+ {[%clk 0:00:19]}  Qxf6 {[%clk 0:00:03]} 77. gxf6 {[%clk 0:00:19]}  Kxf6 {[%clk 0:00:04]} 78. Kg3 {[%clk 0:00:19]}  Kg5 {[%clk 0:00:04]} 79. f4+ {[%clk 0:00:18]}  Kf5 {[%clk 0:00:04]} 80. Kf3 {[%clk 0:00:19]}  Kg6 {[%clk 0:00:04]} 81. Kg4 {[%clk 0:00:19]}  Kf6 {[%clk 0:00:03]} 82. f5 {[%clk 0:00:20]}  Ke7 {[%clk 0:00:03]} 83. Kg5 {[%clk 0:00:20]}  Kf7 {[%clk 0:00:04]} 84. f6 {[%clk 0:00:20]}  Ke6 {[%clk 0:00:04]} 85. Kg6 {[%clk 0:00:20]}  Kd7 {[%clk 0:00:03]} 86. f7 {[%clk 0:00:20]} 1-0


[Site "https://www.chess.com"]

[Event "Titled Tuesday Blitz December 27 Late 2022"]
[White "Garcia, Gabriel Gonzaga"]
[Black "Gasanov, Eldar"]
[WhiteFideId "2138956"]
[BlackFideId "14104466"]
[WhiteElo "2091"]
[BlackElo "2481"]
[Result "0-1"]
[Round "04"]
[TimeControl "180+2"]
[Date "2022.12.27"]
[WhiteClock "0:00:10"]
[BlackClock "0:00:25"]

1. e4 {[%clk 0:03:00]}  c5 {[%clk 0:02:51]} 2. Nf3 {[%clk 0:03:01]}  Nc6 {[%clk 0:02:52]} 3. d4 {[%clk 0:03:01]}  cxd4 {[%clk 0:02:52]} 4. Nxd4 {[%clk 0:03:01]}  Nf6 {[%clk 0:02:53]} 5. Nc3 {[%clk 0:03:02]}  g6 {[%clk 0:02:54]} 6. Be3 {[%clk 0:03:02]}  Bg7 {[%clk 0:02:53]} 7. Be2 {[%clk 0:03:03]}  O-O {[%clk 0:02:53]} 8. Nb3 {[%clk 0:03:03]}  a6 {[%clk 0:02:52]} 9. O-O {[%clk 0:03:03]}  b5 {[%clk 0:02:50]} 10. f4 {[%clk 0:03:01]}  d6 {[%clk 0:02:47]} 11. Bf3 {[%clk 0:03:01]}  Bb7 {[%clk 0:02:47]} 12. Nd5 {[%clk 0:02:58]}  Nd7 {[%clk 0:02:33]} 13. c3 {[%clk 0:02:51]}  e6 {[%clk 0:02:26]} 14. Nb4 {[%clk 0:02:51]}  Nxb4 {[%clk 0:02:26]} 15. cxb4 {[%clk 0:02:52]}  Nf6 {[%clk 0:02:27]} 16. Qd3 {[%clk 0:02:46]}  Rc8 {[%clk 0:02:06]} 17. Rad1 {[%clk 0:02:38]}  Rc4 {[%clk 0:02:04]} 18. e5 {[%clk 0:02:26]}  Nd5 {[%clk 0:01:54]} 19. Na5 {[%clk 0:02:16]}  Nxe3 {[%clk 0:01:21]} 20. Nxb7 {[%clk 0:02:16]}  Qb6 {[%clk 0:01:20]} 21. Qxd6 {[%clk 0:01:54]}  Qa7 {[%clk 0:01:18]} 22. Kh1 {[%clk 0:00:49]}  Rxf4 {[%clk 0:01:07]} 23. Nc5 {[%clk 0:00:37]}  Nxf1 {[%clk 0:00:51]} 24. Rxf1 {[%clk 0:00:38]}  Rc8 {[%clk 0:00:33]} 25. a3 {[%clk 0:00:33]}  Qc7 {[%clk 0:00:32]} 26. Qxa6 {[%clk 0:00:32]}  Bxe5 {[%clk 0:00:31]} 27. Re1 {[%clk 0:00:29]}  Rh4 {[%clk 0:00:28]} 28. Rxe5 {[%clk 0:00:24]}  Rd8 {[%clk 0:00:25]} 29. Rxe6 {[%clk 0:00:10]} 0-1


[Site "https://www.chess.com"]

[Event "Titled Tuesday Blitz December 27 Late 2022"]
[White "Goltseva, Ekaterina"]
[Black "Rego, Pedro Filipe"]
[WhiteFideId "24173770"]
[BlackFideId "1904310"]
[WhiteElo "2283"]
[BlackElo "2312"]
[Result "0-1"]
[Round "04"]
[TimeControl "180+2"]
[Date "2022.12.27"]
[WhiteClock "0:00:01"]
[BlackClock "0:00:09"]

1. Nf3 {[%clk 0:03:00]}  Nf6 {[%clk 0:02:58]} 2. c4 {[%clk 0:02:59]}  e6 {[%clk 0:02:57]} 3. Nc3 {[%clk 0:02:54]}  d5 {[%clk 0:02:54]} 4. e3 {[%clk 0:02:54]}  c5 {[%clk 0:02:54]} 5. d4 {[%clk 0:02:47]}  Nc6 {[%clk 0:02:53]} 6. a3 {[%clk 0:02:45]}  dxc4 {[%clk 0:02:52]} 7. Bxc4 {[%clk 0:02:45]}  a6 {[%clk 0:02:51]} 8. O-O {[%clk 0:02:45]}  b5 {[%clk 0:02:51]} 9. Ba2 {[%clk 0:02:45]}  Bb7 {[%clk 0:02:49]} 10. dxc5 {[%clk 0:02:44]}  Qxd1 {[%clk 0:02:47]} 11. Rxd1 {[%clk 0:02:44]}  Bxc5 {[%clk 0:02:47]} 12. b4 {[%clk 0:02:34]}  Bb6 {[%clk 0:02:45]} 13. Bb2 {[%clk 0:02:33]}  Ke7 {[%clk 0:02:45]} 14. Ne2 {[%clk 0:02:28]}  Rhd8 {[%clk 0:02:43]} 15. Nfd4 {[%clk 0:02:07]}  Nxd4 {[%clk 0:02:42]} 16. Nxd4 {[%clk 0:02:04]}  Rac8 {[%clk 0:02:37]} 17. Rac1 {[%clk 0:02:00]}  Nd5 {[%clk 0:02:18]} 18. Kf1 {[%clk 0:01:52]}  Nf6 {[%clk 0:02:03]} 19. f3 {[%clk 0:01:47]}  Rxc1 {[%clk 0:02:00]} 20. Rxc1 {[%clk 0:01:47]}  Rc8 {[%clk 0:01:55]} 21. Rxc8 {[%clk 0:01:36]}  Bxc8 {[%clk 0:01:56]} 22. Ke2 {[%clk 0:01:33]}  Bb7 {[%clk 0:01:55]} 23. g4 {[%clk 0:01:16]}  Bd5 {[%clk 0:01:52]} 24. Bxd5 {[%clk 0:01:08]}  Nxd5 {[%clk 0:01:53]} 25. Kd3 {[%clk 0:01:03]}  Kd6 {[%clk 0:01:41]} 26. Bc1 {[%clk 0:00:56]}  f6 {[%clk 0:01:29]} 27. e4 {[%clk 0:00:50]}  Ne7 {[%clk 0:01:27]} 28. Nb3 {[%clk 0:00:42]}  Nc6 {[%clk 0:01:22]} 29. Bb2 {[%clk 0:00:41]}  e5 {[%clk 0:01:14]} 30. h4 {[%clk 0:00:35]}  a5 {[%clk 0:01:04]} 31. bxa5 {[%clk 0:00:25]}  Nxa5 {[%clk 0:01:05]} 32. Nd2 {[%clk 0:00:25]}  Bc5 {[%clk 0:00:59]} 33. Bc1 {[%clk 0:00:17]}  Bb6 {[%clk 0:00:52]} 34. Bb2 {[%clk 0:00:17]}  Kc5 {[%clk 0:00:51]} 35. Bc3 {[%clk 0:00:14]}  Kc6 {[%clk 0:00:34]} 36. Bb4 {[%clk 0:00:08]}  Bd8 {[%clk 0:00:32]} 37. Bf8 {[%clk 0:00:06]}  g6 {[%clk 0:00:32]} 38. Nf1 {[%clk 0:00:05]}  Nc4 {[%clk 0:00:25]} 39. Ng3 {[%clk 0:00:05]}  Nb2+ {[%clk 0:00:18]} 40. Kc3 {[%clk 0:00:05]}  Nc4 {[%clk 0:00:19]} 41. h5 {[%clk 0:00:05]}  Bb6 {[%clk 0:00:12]} 42. Kb3 {[%clk 0:00:02]}  Nd2+ {[%clk 0:00:11]} 43. Kc2 {[%clk 0:00:01]}  Nxf3 {[%clk 0:00:12]} 44. Bg7 {[%clk 0:00:01]}  Nd4+ {[%clk 0:00:09]} 0-1


[Site "https://www.chess.com"]

[Event "Titled Tuesday Blitz December 27 Late 2022"]
[White "Goncalves, Davi Sulzbacher"]
[Black "Preotu, Razvan"]
[WhiteFideId "2154510"]
[BlackFideId "2613280"]
[WhiteElo "2282"]
[BlackElo "2475"]
[Result "0-1"]
[Round "04"]
[TimeControl "180+2"]
[Date "2022.12.27"]
[WhiteClock "0:00:03"]
[BlackClock "0:00:15"]

1. Nf3 {[%clk 0:03:00]}  c5 {[%clk 0:02:59]} 2. g3 {[%clk 0:03:00]}  Nc6 {[%clk 0:02:59]} 3. Bg2 {[%clk 0:03:01]}  e5 {[%clk 0:03:00]} 4. O-O {[%clk 0:03:02]}  d5 {[%clk 0:03:00]} 5. c4 {[%clk 0:03:01]}  Nf6 {[%clk 0:02:59]} 6. cxd5 {[%clk 0:02:59]}  Nxd5 {[%clk 0:03:00]} 7. Nc3 {[%clk 0:02:59]}  Be6 {[%clk 0:02:58]} 8. d3 {[%clk 0:02:52]}  Be7 {[%clk 0:02:58]} 9. Nd2 {[%clk 0:02:52]}  O-O {[%clk 0:02:55]} 10. Nc4 {[%clk 0:02:48]}  Qd7 {[%clk 0:02:31]} 11. f4 {[%clk 0:02:36]}  exf4 {[%clk 0:02:31]} 12. gxf4 {[%clk 0:02:35]}  Nxc3 {[%clk 0:02:02]} 13. bxc3 {[%clk 0:02:36]}  Bf6 {[%clk 0:02:02]} 14. Qe1 {[%clk 0:02:04]}  b5 {[%clk 0:01:53]} 15. Ne5 {[%clk 0:01:56]}  Nxe5 {[%clk 0:01:53]} 16. Bxa8 {[%clk 0:01:52]}  Nxd3 {[%clk 0:01:38]} 17. exd3 {[%clk 0:01:51]}  Rxa8 {[%clk 0:01:38]} 18. Be3 {[%clk 0:01:29]}  Qxd3 {[%clk 0:01:34]} 19. Rd1 {[%clk 0:01:22]}  Qc4 {[%clk 0:01:26]} 20. f5 {[%clk 0:01:18]}  Bd5 {[%clk 0:01:25]} 21. Rf4 {[%clk 0:01:17]}  Qxa2 {[%clk 0:01:25]} 22. Rf2 {[%clk 0:01:08]}  Qb3 {[%clk 0:01:19]} 23. Rfd2 {[%clk 0:01:06]}  Bf3 {[%clk 0:01:12]} 24. Rb1 {[%clk 0:00:52]}  Qc4 {[%clk 0:01:09]} 25. Qf2 {[%clk 0:00:38]}  Be4 {[%clk 0:01:03]} 26. Rbd1 {[%clk 0:00:37]}  Qxc3 {[%clk 0:00:57]} 27. Bxc5 {[%clk 0:00:34]}  h6 {[%clk 0:00:57]} 28. Bxa7 {[%clk 0:00:30]}  Rxa7 {[%clk 0:00:45]} 29. Qxa7 {[%clk 0:00:25]}  Qf3 {[%clk 0:00:46]} 30. Qb8+ {[%clk 0:00:21]}  Kh7 {[%clk 0:00:45]} 31. Qg3 {[%clk 0:00:21]}  Qxf5 {[%clk 0:00:32]} 32. Rf2 {[%clk 0:00:11]}  Qc5 {[%clk 0:00:28]} 33. Kf1 {[%clk 0:00:10]}  Qc4+ {[%clk 0:00:26]} 34. Ke1 {[%clk 0:00:09]}  Bc3+ {[%clk 0:00:26]} 35. Rfd2 {[%clk 0:00:04]}  b4 {[%clk 0:00:22]} 36. Kf2 {[%clk 0:00:04]}  Bxd2 {[%clk 0:00:19]} 37. Rxd2 {[%clk 0:00:05]}  b3 {[%clk 0:00:19]} 38. Qe5 {[%clk 0:00:05]}  Bc2 {[%clk 0:00:18]} 39. Ke3 {[%clk 0:00:03]}  Qe6 {[%clk 0:00:15]} 0-1


[Site "https://www.chess.com"]

[Event "Titled Tuesday Blitz December 27 Late 2022"]
[White "Gorodetzky, David"]
[Black "Araujo Sanchez, Josue"]
[WhiteFideId "2813416"]
[BlackFideId "6416896"]
[WhiteElo "2485"]
[BlackElo "2303"]
[Result "1-0"]
[Round "04"]
[TimeControl "180+2"]
[Date "2022.12.27"]
[WhiteClock "0:00:25"]
[BlackClock "0:00:05"]

1. d4 {[%clk 0:02:43]}  Nf6 {[%clk 0:02:59]} 2. Nf3 {[%clk 0:02:43]}  e6 {[%clk 0:02:59]} 3. Bf4 {[%clk 0:02:43]}  Be7 {[%clk 0:02:57]} 4. e3 {[%clk 0:02:40]}  O-O {[%clk 0:02:57]} 5. c4 {[%clk 0:02:37]}  b6 {[%clk 0:02:51]} 6. Nc3 {[%clk 0:02:37]}  Bb4 {[%clk 0:02:48]} 7. Bd3 {[%clk 0:02:36]}  Bb7 {[%clk 0:02:45]} 8. O-O {[%clk 0:02:36]}  Bxc3 {[%clk 0:02:45]} 9. bxc3 {[%clk 0:02:36]}  Ne4 {[%clk 0:02:45]} 10. Nd2 {[%clk 0:02:20]}  Nxd2 {[%clk 0:02:42]} 11. Qxd2 {[%clk 0:02:21]}  d6 {[%clk 0:02:39]} 12. e4 {[%clk 0:02:21]}  Nd7 {[%clk 0:02:39]} 13. Bg5 {[%clk 0:02:17]}  f6 {[%clk 0:02:36]} 14. Be3 {[%clk 0:02:17]}  f5 {[%clk 0:02:30]} 15. exf5 {[%clk 0:02:11]}  exf5 {[%clk 0:02:28]} 16. Bg5 {[%clk 0:02:05]}  Qe8 {[%clk 0:02:28]} 17. Rae1 {[%clk 0:02:05]}  Qg6 {[%clk 0:02:27]} 18. Re7 {[%clk 0:02:03]}  Rf7 {[%clk 0:02:21]} 19. Rfe1 {[%clk 0:02:02]}  Nf6 {[%clk 0:02:14]} 20. d5 {[%clk 0:01:50]}  Raf8 {[%clk 0:02:10]} 21. f3 {[%clk 0:01:44]}  h6 {[%clk 0:02:07]} 22. Rxf7 {[%clk 0:01:39]}  Qxf7 {[%clk 0:02:01]} 23. Bxf5 {[%clk 0:01:35]}  Bc8 {[%clk 0:01:52]} 24. Bxc8 {[%clk 0:01:27]}  Rxc8 {[%clk 0:01:53]} 25. Be3 {[%clk 0:01:26]}  Re8 {[%clk 0:01:36]} 26. Bd4 {[%clk 0:01:25]}  Nd7 {[%clk 0:01:34]} 27. Re3 {[%clk 0:01:20]}  a6 {[%clk 0:01:24]} 28. h4 {[%clk 0:01:17]}  Rxe3 {[%clk 0:01:17]} 29. Qxe3 {[%clk 0:01:17]}  b5 {[%clk 0:01:17]} 30. cxb5 {[%clk 0:01:15]}  axb5 {[%clk 0:01:17]} 31. Qe6 {[%clk 0:00:57]}  Kf8 {[%clk 0:00:52]} 32. f4 {[%clk 0:00:48]}  g6 {[%clk 0:00:38]} 33. g4 {[%clk 0:00:40]}  Qxf4 {[%clk 0:00:19]} 34. Qxd7 {[%clk 0:00:38]}  Qg3+ {[%clk 0:00:18]} 35. Kf1 {[%clk 0:00:36]}  Qf3+ {[%clk 0:00:18]} 36. Ke1 {[%clk 0:00:36]}  Qe4+ {[%clk 0:00:16]} 37. Kd2 {[%clk 0:00:33]}  Qg2+ {[%clk 0:00:16]} 38. Kc1 {[%clk 0:00:29]}  Qf1+ {[%clk 0:00:15]} 39. Kb2 {[%clk 0:00:29]}  Qg2+ {[%clk 0:00:11]} 40. Ka3 {[%clk 0:00:28]}  Qxd5 {[%clk 0:00:07]} 41. Qxc7 {[%clk 0:00:27]}  Qa8+ {[%clk 0:00:06]} 42. Qa7 {[%clk 0:00:26]}  Qd5 {[%clk 0:00:04]} 43. Qg7+ {[%clk 0:00:24]}  Ke8 {[%clk 0:00:04]} 44. Qxg6+ {[%clk 0:00:25]}  Kd7 {[%clk 0:00:05]} 45. Qf5+ {[%clk 0:00:25]} 1-0


[Site "https://www.chess.com"]

[Event "Titled Tuesday Blitz December 27 Late 2022"]
[White "Grigorov, Grigor"]
[Black "Sos Andreu, Eric"]
[WhiteFideId "2907313"]
[BlackFideId "22247017"]
[WhiteElo "2510"]
[BlackElo "2352"]
[Result "1-0"]
[Round "04"]
[TimeControl "180+2"]
[Date "2022.12.27"]
[WhiteClock "0:00:37"]
[BlackClock "0:00:41"]

1. Nf3 {[%clk 0:02:25]}  Nf6 {[%clk 0:02:59]} 2. d4 {[%clk 0:02:24]}  e6 {[%clk 0:02:58]} 3. Bg5 {[%clk 0:02:24]}  Be7 {[%clk 0:02:56]} 4. Nbd2 {[%clk 0:02:23]}  d5 {[%clk 0:02:56]} 5. e3 {[%clk 0:02:23]}  O-O {[%clk 0:02:55]} 6. Bd3 {[%clk 0:02:23]}  Nbd7 {[%clk 0:02:54]} 7. c3 {[%clk 0:02:22]}  h6 {[%clk 0:02:54]} 8. Bh4 {[%clk 0:02:21]}  c5 {[%clk 0:02:53]} 9. O-O {[%clk 0:02:18]}  b6 {[%clk 0:02:53]} 10. Ne5 {[%clk 0:02:17]}  Bb7 {[%clk 0:02:51]} 11. Nxd7 {[%clk 0:02:11]}  Nxd7 {[%clk 0:02:47]} 12. Bxe7 {[%clk 0:02:10]}  Qxe7 {[%clk 0:02:48]} 13. f4 {[%clk 0:02:02]}  Rac8 {[%clk 0:02:40]} 14. Qh5 {[%clk 0:01:55]}  Nf6 {[%clk 0:02:37]} 15. Qh4 {[%clk 0:01:55]}  cxd4 {[%clk 0:02:30]} 16. exd4 {[%clk 0:01:54]}  Rc7 {[%clk 0:02:22]} 17. Rae1 {[%clk 0:01:54]}  Nh7 {[%clk 0:01:56]} 18. Qg3 {[%clk 0:01:45]}  Qd6 {[%clk 0:01:47]} 19. Re5 {[%clk 0:01:33]}  f5 {[%clk 0:01:40]} 20. Rfe1 {[%clk 0:01:26]}  Bc8 {[%clk 0:01:39]} 21. Nf3 {[%clk 0:01:19]}  Nf6 {[%clk 0:01:38]} 22. R5e2 {[%clk 0:01:06]}  a6 {[%clk 0:01:32]} 23. Ne5 {[%clk 0:01:05]}  b5 {[%clk 0:01:23]} 24. a3 {[%clk 0:01:05]}  Nd7 {[%clk 0:01:11]} 25. Ng6 {[%clk 0:01:02]}  Rf6 {[%clk 0:01:04]} 26. Bxf5 {[%clk 0:00:39]}  exf5 {[%clk 0:00:45]} 27. Re8+ {[%clk 0:00:38]}  Kf7 {[%clk 0:00:41]} 28. Nh8# {[%clk 0:00:37]} 1-0


[Site "https://www.chess.com"]

[Event "Titled Tuesday Blitz December 27 Late 2022"]
[White "Gritsenko, Nikolai"]
[Black "Vakhlamov, Igor L."]
[WhiteFideId "14112493"]
[BlackFideId "24126748"]
[WhiteElo "2309"]
[BlackElo "2413"]
[Result "0-1"]
[Round "04"]
[TimeControl "180+2"]
[Date "2022.12.27"]
[WhiteClock "0:00:01"]
[BlackClock "0:00:20"]

1. b3 {[%clk 0:03:00]}  e5 {[%clk 0:02:59]} 2. Bb2 {[%clk 0:03:00]}  Nc6 {[%clk 0:02:59]} 3. c4 {[%clk 0:03:01]}  Nf6 {[%clk 0:02:50]} 4. e3 {[%clk 0:03:01]}  d5 {[%clk 0:02:49]} 5. cxd5 {[%clk 0:03:00]}  Nxd5 {[%clk 0:02:50]} 6. a3 {[%clk 0:03:00]}  Bd6 {[%clk 0:02:50]} 7. d3 {[%clk 0:03:00]}  O-O {[%clk 0:02:50]} 8. Nf3 {[%clk 0:03:01]}  Re8 {[%clk 0:02:45]} 9. Be2 {[%clk 0:02:59]}  a5 {[%clk 0:02:43]} 10. O-O {[%clk 0:02:58]}  Nde7 {[%clk 0:02:34]} 11. Nbd2 {[%clk 0:02:57]}  Ng6 {[%clk 0:02:34]} 12. Re1 {[%clk 0:02:53]}  Bd7 {[%clk 0:02:31]} 13. Rc1 {[%clk 0:02:52]}  Nh4 {[%clk 0:02:29]} 14. Nc4 {[%clk 0:02:45]}  Nxf3+ {[%clk 0:02:29]} 15. Bxf3 {[%clk 0:02:45]}  Qg5 {[%clk 0:02:22]} 16. Qe2 {[%clk 0:02:11]}  h6 {[%clk 0:02:18]} 17. g3 {[%clk 0:02:01]}  Qg6 {[%clk 0:02:10]} 18. Be4 {[%clk 0:01:46]}  f5 {[%clk 0:02:07]} 19. Bd5+ {[%clk 0:01:46]}  Kh8 {[%clk 0:02:06]} 20. Bf3 {[%clk 0:01:36]}  Re7 {[%clk 0:02:02]} 21. Red1 {[%clk 0:01:21]}  Rf8 {[%clk 0:01:57]} 22. Nxd6 {[%clk 0:01:18]}  cxd6 {[%clk 0:01:58]} 23. d4 {[%clk 0:01:17]}  f4 {[%clk 0:01:40]} 24. Bh5 {[%clk 0:01:09]}  Qg5 {[%clk 0:01:36]} 25. h4 {[%clk 0:00:37]}  Qf5 {[%clk 0:01:27]} 26. e4 {[%clk 0:00:37]}  Qh3 {[%clk 0:01:20]} 27. d5 {[%clk 0:00:32]}  fxg3 {[%clk 0:01:15]} 28. fxg3 {[%clk 0:00:32]}  Qxg3+ {[%clk 0:01:15]} 29. Qg2 {[%clk 0:00:32]}  Qe3+ {[%clk 0:01:15]} 30. Kh1 {[%clk 0:00:32]}  Rf2 {[%clk 0:01:09]} 31. Rc3 {[%clk 0:00:25]}  Qf4 {[%clk 0:00:57]} 32. dxc6 {[%clk 0:00:14]}  Rxg2 {[%clk 0:00:55]} 33. Kxg2 {[%clk 0:00:15]}  Bxc6 {[%clk 0:00:56]} 34. Rg3 {[%clk 0:00:12]}  Bxe4+ {[%clk 0:00:51]} 35. Kh3 {[%clk 0:00:12]}  Bf5+ {[%clk 0:00:46]} 36. Bg4 {[%clk 0:00:12]}  Rf7 {[%clk 0:00:40]} 37. Rdg1 {[%clk 0:00:11]}  h5 {[%clk 0:00:35]} 38. Bxf5 {[%clk 0:00:10]}  Qxf5+ {[%clk 0:00:36]} 39. Kh2 {[%clk 0:00:10]}  Qc2+ {[%clk 0:00:35]} 40. R1g2 {[%clk 0:00:09]}  Rf2 {[%clk 0:00:36]} 41. Rxg7 {[%clk 0:00:08]}  Rxg2+ {[%clk 0:00:31]} 42. Rxg2 {[%clk 0:00:08]}  Qxb3 {[%clk 0:00:31]} 43. Bc1 {[%clk 0:00:08]}  Qc4 {[%clk 0:00:29]} 44. Bg5 {[%clk 0:00:07]}  Kh7 {[%clk 0:00:28]} 45. Rf2 {[%clk 0:00:06]}  b5 {[%clk 0:00:27]} 46. Rf6 {[%clk 0:00:05]}  Qe2+ {[%clk 0:00:23]} 47. Kg3 {[%clk 0:00:04]}  Qd3+ {[%clk 0:00:23]} 48. Kh2 {[%clk 0:00:05]}  Qc2+ {[%clk 0:00:22]} 49. Kg3 {[%clk 0:00:04]}  Qb3+ {[%clk 0:00:22]} 50. Kh2 {[%clk 0:00:05]}  Qa2+ {[%clk 0:00:22]} 51. Kg1 {[%clk 0:00:04]}  Qa1+ {[%clk 0:00:22]} 52. Kh2 {[%clk 0:00:04]}  Qxa3 {[%clk 0:00:20]} 53. Rh6+ {[%clk 0:00:03]}  Kg7 {[%clk 0:00:20]} 54. Rxh5 {[%clk 0:00:03]}  Qa2+ {[%clk 0:00:21]} 55. Kg3 {[%clk 0:00:03]}  Qb3+ {[%clk 0:00:21]} 56. Kf2 {[%clk 0:00:02]}  Qc2+ {[%clk 0:00:21]} 57. Ke1 {[%clk 0:00:03]}  Qe4+ {[%clk 0:00:21]} 58. Kd2 {[%clk 0:00:02]}  Qd4+ {[%clk 0:00:20]} 59. Kc1 {[%clk 0:00:01]}  Qg1+ {[%clk 0:00:20]} 60. Kc2 {[%clk 0:00:01]}  Qg2+ {[%clk 0:00:20]} 0-1


[Site "https://www.chess.com"]